[Event "*** Titled Tuesday Blitz"]
[Site "Chess.com"]
[Date "2018.12.04"]
[Round "5"]
[White "JordanaEmiel"]
[Black "Vadim_Biliy"]
[Result "0-1"]
[WhiteElo "2029"]
[BlackElo "2148"]
[TimeControl "180+2"]
[EndTime "14:03:25 PST"]
[Termination "Vadim_Biliy won by resignation"]

1. d4 {[%clk 0:03:01.9]} 1... d5 {[%clk 0:02:59.5]} 2. c4 {[%clk 0:03:02.9]}
2... e6 {[%clk 0:02:59.3]} 3. Nc3 {[%clk 0:03:04]} 3... Nf6 {[%clk 0:02:59]} 4.
Bg5 {[%clk 0:03:04.5]} 4... Be7 {[%clk 0:02:59.1]} 5. e3 {[%clk 0:03:05.1]} 5...
O-O {[%clk 0:02:59.8]} 6. Nf3 {[%clk 0:03:05.6]} 6... Ne4 {[%clk 0:03:00.6]} 7.
Bxe7 {[%clk 0:03:04.9]} 7... Qxe7 {[%clk 0:03:02.1]} 8. Qc2 {[%clk 0:03:06.2]}
8... Nxc3 {[%clk 0:03:02.3]} 9. Qxc3 {[%clk 0:03:04.3]} 9... Rd8 {[%clk
0:03:03.9]} 10. Be2 {[%clk 0:03:03.9]} 10... Nc6 {[%clk 0:03:04.8]} 11. O-O
{[%clk 0:03:00.3]} 11... a6 {[%clk 0:03:06.2]} 12. cxd5 {[%clk 0:02:59.4]} 12...
exd5 {[%clk 0:03:04.7]} 13. Rac1 {[%clk 0:02:59.7]} 13... Rd6 {[%clk 0:02:42.9]}
14. Rfd1 {[%clk 0:02:56]} 14... Bg4 {[%clk 0:02:36.3]} 15. h3 {[%clk 0:02:50]}
15... Bxf3 {[%clk 0:02:34.1]} 16. Bxf3 {[%clk 0:02:51.9]} 16... Re8 {[%clk
0:02:29.3]} 17. Qb3 {[%clk 0:02:45.8]} 17... Qd7 {[%clk 0:02:17]} 18. Qxb7
{[%clk 0:02:37.5]} 18... Rb8 {[%clk 0:02:13.8]} 19. Qxb8+ {[%clk 0:02:36.5]}
19... Nxb8 {[%clk 0:02:13.2]} 20. Rc5 {[%clk 0:02:33.7]} 20... c6 {[%clk
0:02:12.5]} 21. Rdc1 {[%clk 0:02:31]} 21... f5 {[%clk 0:02:12.6]} 22. b4 {[%clk
0:02:23.7]} 22... g5 {[%clk 0:02:11.8]} 23. a4 {[%clk 0:02:22.1]} 23... g4
{[%clk 0:02:12.5]} 24. hxg4 {[%clk 0:02:22.6]} 24... fxg4 {[%clk 0:02:13.3]} 25.
Be2 {[%clk 0:02:22.9]} 25... Rf6 {[%clk 0:02:03.9]} 26. b5 {[%clk 0:02:22.9]}
26... axb5 {[%clk 0:02:04.2]} 27. axb5 {[%clk 0:02:24.8]} 27... cxb5 {[%clk
0:02:02.1]} 28. Rc8+ {[%clk 0:02:25]} 28... Rf8 {[%clk 0:02:02.7]} 29. R8c7
{[%clk 0:02:21.9]} 29... Qf5 {[%clk 0:02:03.3]} 30. f3 {[%clk 0:02:14]} 30...
Qe6 {[%clk 0:01:55.2]} 31. Kf2 {[%clk 0:02:09.3]} 31... g3+ {[%clk 0:01:53.4]}
32. Ke1 {[%clk 0:02:05.1]} 32... Qxe3 {[%clk 0:01:53.2]} 33. R7c3 {[%clk
0:02:05.8]} 33... Qg1+ {[%clk 0:01:50.4]} 34. Kd2 {[%clk 0:02:05.1]} 34... Qxd4+
{[%clk 0:01:50.9]} 35. Ke1 {[%clk 0:02:05.5]} 35... b4 {[%clk 0:01:48.2]} 36.
Rd3 {[%clk 0:02:05.3]} 36... Qf2+ {[%clk 0:01:47.2]} 37. Kd2 {[%clk 0:02:06.5]}
37... Re8 {[%clk 0:01:47.3]} 38. Re1 {[%clk 0:02:07.1]} 38... d4 {[%clk
0:01:47.7]} 39. Rb3 {[%clk 0:02:00.6]} 39... Na6 {[%clk 0:01:47]} 40. Rd3 {[%clk
0:02:01.2]} 40... Nc5 {[%clk 0:01:47.4]} 0-1

[Event "*** Titled Tuesday Blitz"]
[Site "Chess.com"]
[Date "2018.12.04"]
[Round "5"]
[White "CaptainCasanova"]
[Black "vugarrasulov"]
[Result "0-1"]
[WhiteElo "2656"]
[BlackElo "2795"]
[TimeControl "180+2"]
[EndTime "14:03:34 PST"]
[Termination "vugarrasulov won by resignation"]

1. d4 {[%clk 0:03:01.9]} 1... Nf6 {[%clk 0:03:01.9]} 2. c4 {[%clk 0:03:02.2]}
2... e6 {[%clk 0:03:03]} 3. Nf3 {[%clk 0:03:02.3]} 3... b6 {[%clk 0:03:03.4]} 4.
a3 {[%clk 0:03:03.2]} 4... Bb7 {[%clk 0:03:02.9]} 5. Nc3 {[%clk 0:03:04.2]} 5...
d5 {[%clk 0:03:04.1]} 6. cxd5 {[%clk 0:03:04.9]} 6... Nxd5 {[%clk 0:03:06]} 7.
Qc2 {[%clk 0:03:06.3]} 7... Nxc3 {[%clk 0:03:05.6]} 8. bxc3 {[%clk 0:03:08.2]}
8... Be7 {[%clk 0:03:04.9]} 9. e4 {[%clk 0:03:09.3]} 9... O-O {[%clk 0:03:05.9]}
10. Bd3 {[%clk 0:03:08.9]} 10... c5 {[%clk 0:03:06.9]} 11. O-O {[%clk
0:03:10.4]} 11... Qc7 {[%clk 0:03:05.6]} 12. Qe2 {[%clk 0:03:09.7]} 12... Nd7
{[%clk 0:03:02.9]} 13. Bb2 {[%clk 0:03:10.8]} 13... Rac8 {[%clk 0:03:02.2]} 14.
Rac1 {[%clk 0:03:10.6]} 14... Rfd8 {[%clk 0:03:01.7]} 15. a4 {[%clk 0:03:10.9]}
15... Qb8 {[%clk 0:02:51.3]} 16. Rfd1 {[%clk 0:03:07]} 16... Nf8 {[%clk
0:02:42.5]} 17. Qe3 {[%clk 0:02:48.8]} 17... Ng6 {[%clk 0:02:40.9]} 18. e5
{[%clk 0:02:43.3]} 18... cxd4 {[%clk 0:02:36.9]} 19. cxd4 {[%clk 0:02:43.9]}
19... Rxc1 {[%clk 0:02:34.4]} 20. Rxc1 {[%clk 0:02:44.5]} 20... Rc8 {[%clk
0:02:36.3]} 21. Rxc8+ {[%clk 0:02:43.6]} 21... Qxc8 {[%clk 0:02:38.2]} 22. Nd2
{[%clk 0:02:38.5]} 22... Ba6 {[%clk 0:02:31]} 23. Be4 {[%clk 0:02:33.5]} 23...
h6 {[%clk 0:02:23.3]} 24. g3 {[%clk 0:02:29.8]} 24... Bb7 {[%clk 0:02:23]} 25.
Qf3 {[%clk 0:02:18]} 25... Bxe4 {[%clk 0:02:21.9]} 26. Qxe4 {[%clk 0:02:19.9]}
26... Nf8 {[%clk 0:02:16.4]} 27. Kg2 {[%clk 0:01:53.8]} 27... Nd7 {[%clk
0:02:16.8]} 28. f4 {[%clk 0:01:47.5]} 28... Bb4 {[%clk 0:02:07]} 29. Nf1 {[%clk
0:01:45.8]} 29... Qc4 {[%clk 0:01:59.3]} 30. Qa8+ {[%clk 0:01:41.8]} 30... Nf8
{[%clk 0:01:59.4]} 31. Qe4 {[%clk 0:01:17.7]} 31... Qa2 {[%clk 0:01:58.9]} 32.
Qc2 {[%clk 0:01:09.2]} 32... Ba3 {[%clk 0:01:59.2]} 0-1

[Event "*** Titled Tuesday Blitz"]
[Site "Chess.com"]
[Date "2018.12.04"]
[Round "5"]
[White "PowerThinking2650"]
[Black "AndrewMcStone"]
[Result "1-0"]
[WhiteElo "2258"]
[BlackElo "2127"]
[TimeControl "180+2"]
[EndTime "14:03:39 PST"]
[Termination "PowerThinking2650 won by resignation"]

1. e4 {[%clk 0:03:01.9]} 1... e6 {[%clk 0:03:00.6]} 2. d4 {[%clk 0:03:02]} 2...
d5 {[%clk 0:03:02]} 3. Nd2 {[%clk 0:03:03.6]} 3... Be7 {[%clk 0:03:01.5]} 4.
Ngf3 {[%clk 0:03:01.6]} 4... Nf6 {[%clk 0:02:51.2]} 5. e5 {[%clk 0:03:02.3]}
5... Nfd7 {[%clk 0:02:51.6]} 6. Bd3 {[%clk 0:03:02.7]} 6... c5 {[%clk
0:02:52.7]} 7. c3 {[%clk 0:03:03.8]} 7... Nc6 {[%clk 0:02:53.3]} 8. O-O {[%clk
0:03:04.4]} 8... g5 {[%clk 0:02:54.7]} 9. dxc5 {[%clk 0:02:49.3]} 9... g4 {[%clk
0:02:55.1]} 10. Nd4 {[%clk 0:02:46.7]} 10... Ndxe5 {[%clk 0:02:53.4]} 11. Bb5
{[%clk 0:02:39.2]} 11... Bd7 {[%clk 0:02:51]} 12. Bxc6 {[%clk 0:02:28.8]} 12...
Nxc6 {[%clk 0:02:38.2]} 13. b4 {[%clk 0:02:28.2]} 13... Qc7 {[%clk 0:01:44.9]}
14. Re1 {[%clk 0:02:13]} 14... h5 {[%clk 0:01:26.5]} 15. Nb5 {[%clk 0:02:12.4]}
15... Qb8 {[%clk 0:01:17.8]} 16. Nb3 {[%clk 0:02:02.9]} 16... a6 {[%clk
0:01:09.3]} 17. N5d4 {[%clk 0:01:58.4]} 17... Qc7 {[%clk 0:00:53.1]} 18. Nxc6
{[%clk 0:01:55.4]} 18... Bxc6 {[%clk 0:00:50.6]} 19. Qd4 {[%clk 0:01:54.2]}
19... O-O-O {[%clk 0:00:45.9]} 20. Bf4 {[%clk 0:01:54.4]} 20... e5 {[%clk
0:00:21.4]} 21. Bxe5 {[%clk 0:01:54.1]} 21... Qd7 {[%clk 0:00:22.3]} 22. Bxh8
{[%clk 0:01:53.9]} 1-0

[Event "*** Titled Tuesday Blitz"]
[Site "Chess.com"]
[Date "2018.12.04"]
[Round "5"]
[White "Fighterman91"]
[Black "Thjop"]
[Result "0-1"]
[WhiteElo "2610"]
[BlackElo "2671"]
[TimeControl "180+2"]
[EndTime "14:03:47 PST"]
[Termination "Thjop won by resignation"]

1. e4 {[%clk 0:03:01.9]} 1... e6 {[%clk 0:03:00.7]} 2. d4 {[%clk 0:03:02.6]}
2... d5 {[%clk 0:03:02.6]} 3. Nc3 {[%clk 0:03:03.8]} 3... Bb4 {[%clk 0:03:00.2]}
4. exd5 {[%clk 0:03:05]} 4... exd5 {[%clk 0:03:00.9]} 5. Bd3 {[%clk 0:03:06.4]}
5... Nf6 {[%clk 0:03:00.7]} 6. Nf3 {[%clk 0:03:04.4]} 6... O-O {[%clk
0:03:00.8]} 7. O-O {[%clk 0:03:06]} 7... Bg4 {[%clk 0:03:00.4]} 8. h3 {[%clk
0:03:06.7]} 8... Bh5 {[%clk 0:03:01.5]} 9. Bf4 {[%clk 0:03:07]} 9... Nc6 {[%clk
0:02:59.7]} 10. Nb5 {[%clk 0:03:02]} 10... a6 {[%clk 0:02:43.6]} 11. Nxc7 {[%clk
0:02:44.5]} 11... Rc8 {[%clk 0:02:41.8]} 12. Nxa6 {[%clk 0:02:45.2]} 12... bxa6
{[%clk 0:02:38.1]} 13. Bxa6 {[%clk 0:02:47.1]} 13... Bxf3 {[%clk 0:02:35.9]} 14.
Qxf3 {[%clk 0:02:39.1]} 14... Ra8 {[%clk 0:02:15]} 15. Bd3 {[%clk 0:02:05.4]}
15... Nxd4 {[%clk 0:02:14.3]} 16. Qd1 {[%clk 0:02:06.2]} 16... Ne6 {[%clk
0:02:10.4]} 17. Be5 {[%clk 0:02:00.2]} 17... Bd6 {[%clk 0:01:58.7]} 18. Bxf6
{[%clk 0:02:00.4]} 18... Qxf6 {[%clk 0:01:57.8]} 19. Qh5 {[%clk 0:02:02.3]}
19... g6 {[%clk 0:01:50.8]} 20. Qxd5 {[%clk 0:02:03.8]} 20... Rfd8 {[%clk
0:01:52.2]} 21. Kh1 {[%clk 0:01:36.2]} 21... Qxb2 {[%clk 0:01:44.4]} 22. a4
{[%clk 0:01:25.3]} 22... Nf4 {[%clk 0:01:36.2]} 23. Qf3 {[%clk 0:01:13.1]} 23...
Nxd3 {[%clk 0:01:32.7]} 24. cxd3 {[%clk 0:01:13.6]} 24... Qb4 {[%clk 0:01:26]}
25. Rfb1 {[%clk 0:01:08.6]} 25... Rxa4 {[%clk 0:01:19.6]} 0-1

[Event "*** Titled Tuesday Blitz"]
[Site "Chess.com"]
[Date "2018.12.04"]
[Round "5"]
[White "hypert"]
[Black "StoreySniper"]
[Result "1-0"]
[WhiteElo "2391"]
[BlackElo "2399"]
[TimeControl "180+2"]
[EndTime "14:04:06 PST"]
[Termination "hypert won by resignation"]

1. Nf3 {[%clk 0:03:01.9]} 1... g6 {[%clk 0:03:01.9]} 2. c4 {[%clk 0:03:02.2]}
2... Bg7 {[%clk 0:03:03.8]} 3. e3 {[%clk 0:03:03.3]} 3... c5 {[%clk 0:03:05.5]}
4. Be2 {[%clk 0:03:04.4]} 4... Nf6 {[%clk 0:03:06.2]} 5. O-O {[%clk 0:03:06]}
5... d5 {[%clk 0:03:06.1]} 6. cxd5 {[%clk 0:03:06.6]} 6... Qxd5 {[%clk
0:03:06.9]} 7. Nc3 {[%clk 0:03:08]} 7... Qf5 {[%clk 0:03:07.7]} 8. d4 {[%clk
0:03:09.1]} 8... cxd4 {[%clk 0:03:07.7]} 9. Nxd4 {[%clk 0:03:09.6]} 9... Qe5
{[%clk 0:03:01.1]} 10. Bb5+ {[%clk 0:03:03.1]} 10... Bd7 {[%clk 0:03:00.4]} 11.
Qb3 {[%clk 0:03:04]} 11... Ng4 {[%clk 0:02:45.7]} 12. Nf3 {[%clk 0:02:58.3]}
12... Qh5 {[%clk 0:02:38.3]} 13. h3 {[%clk 0:02:52]} 13... Ne5 {[%clk
0:02:37.9]} 14. Nxe5 {[%clk 0:02:44.5]} 14... Bxe5 {[%clk 0:02:30]} 15. Bxd7+
{[%clk 0:02:43.4]} 15... Nxd7 {[%clk 0:02:31]} 16. Qxb7 {[%clk 0:02:44.2]} 16...
Rb8 {[%clk 0:02:31.8]} 17. Qf3 {[%clk 0:02:40.6]} 17... O-O {[%clk 0:02:22.8]}
18. Qxh5 {[%clk 0:02:40.3]} 18... gxh5 {[%clk 0:02:23]} 19. Rd1 {[%clk
0:02:41.9]} 19... Bxc3 {[%clk 0:02:19.1]} 20. bxc3 {[%clk 0:02:41.5]} 20... Ne5
{[%clk 0:02:18.6]} 21. Ba3 {[%clk 0:02:39.1]} 21... Rfe8 {[%clk 0:02:17.2]} 22.
Rab1 {[%clk 0:02:38.8]} 22... Rxb1 {[%clk 0:02:14.6]} 23. Rxb1 {[%clk
0:02:39.6]} 23... Nc4 {[%clk 0:02:16]} 24. Bc5 {[%clk 0:02:39.3]} 24... a5
{[%clk 0:02:16.6]} 25. Rb7 {[%clk 0:02:36.3]} 25... e6 {[%clk 0:02:15.2]} 26.
Rc7 {[%clk 0:02:34.6]} 26... Rb8 {[%clk 0:02:11.7]} 27. Kh2 {[%clk 0:02:33.6]}
27... Rb2 {[%clk 0:02:05.9]} 28. Bd4 {[%clk 0:02:29.1]} 28... e5 {[%clk
0:02:02.7]} 29. Rxc4 {[%clk 0:02:29.8]} 29... exd4 {[%clk 0:02:03.7]} 30. exd4
{[%clk 0:02:31.2]} 30... Rxf2 {[%clk 0:02:03.2]} 31. a4 {[%clk 0:02:29.6]} 31...
Rd2 {[%clk 0:02:02.5]} 32. Rc5 {[%clk 0:02:30.3]} 32... Rd3 {[%clk 0:02:01.6]}
33. d5 {[%clk 0:02:26.7]} 33... Kf8 {[%clk 0:02:01.3]} 34. c4 {[%clk 0:02:27]}
34... Rd4 {[%clk 0:02:00.1]} 35. Kg3 {[%clk 0:02:21.5]} 35... Ke7 {[%clk
0:01:59.9]} 36. Rc6 {[%clk 0:02:21.9]} 36... Kd7 {[%clk 0:01:51.8]} 37. Kf3
{[%clk 0:02:18.7]} 37... h4 {[%clk 0:01:50.5]} 38. Ke3 {[%clk 0:02:15]} 38...
Rd1 {[%clk 0:01:51.5]} 39. Rf6 {[%clk 0:02:14.1]} 39... Re1+ {[%clk 0:01:48.4]}
40. Kd4 {[%clk 0:02:14.6]} 40... Ke7 {[%clk 0:01:46.8]} 41. Rf4 {[%clk
0:02:04.1]} 41... Ra1 {[%clk 0:01:41.9]} 42. Kc5 {[%clk 0:02:05.3]} 42... Rxa4
{[%clk 0:01:42.5]} 43. Kc6 {[%clk 0:02:06.5]} 43... Ra2 {[%clk 0:01:39.2]} 44.
d6+ {[%clk 0:02:06]} 44... Kd8 {[%clk 0:01:28.8]} 45. Rg4 {[%clk 0:02:03.4]} 1-0

[Event "*** Titled Tuesday Blitz"]
[Site "Chess.com"]
[Date "2018.12.04"]
[Round "5"]
[White "Micki-taryan"]
[Black "armago"]
[Result "1-0"]
[WhiteElo "2894"]
[BlackElo "2037"]
[TimeControl "180+2"]
[EndTime "14:04:37 PST"]
[Termination "Micki-taryan won by resignation"]

1. c4 {[%clk 0:03:01.9]} 1... Nf6 {[%clk 0:02:58.3]} 2. Nc3 {[%clk 0:03:02.3]}
2... g6 {[%clk 0:02:59.1]} 3. e4 {[%clk 0:03:02.6]} 3... d6 {[%clk 0:02:59.6]}
4. d4 {[%clk 0:03:04]} 4... Bg7 {[%clk 0:03:00.5]} 5. Nf3 {[%clk 0:03:04.6]}
5... O-O {[%clk 0:03:00.8]} 6. h3 {[%clk 0:03:05.2]} 6... e5 {[%clk 0:02:56.7]}
7. d5 {[%clk 0:03:05.2]} 7... a5 {[%clk 0:02:53.6]} 8. g4 {[%clk 0:03:04.7]}
8... Na6 {[%clk 0:02:53.7]} 9. Be3 {[%clk 0:03:05.4]} 9... Nc5 {[%clk
0:02:52.5]} 10. Nd2 {[%clk 0:03:06.1]} 10... Bd7 {[%clk 0:02:48.6]} 11. Be2
{[%clk 0:03:05.8]} 11... c6 {[%clk 0:02:47.9]} 12. Qc2 {[%clk 0:03:06.5]} 12...
cxd5 {[%clk 0:02:45.4]} 13. exd5 {[%clk 0:03:08.4]} 13... a4 {[%clk 0:02:41]}
14. f3 {[%clk 0:03:08.2]} 14... Qa5 {[%clk 0:02:26.6]} 15. h4 {[%clk 0:03:05.8]}
15... e4 {[%clk 0:02:17.1]} 16. g5 {[%clk 0:03:06.1]} 16... Nh5 {[%clk
0:02:14.7]} 17. Ndxe4 {[%clk 0:02:59.3]} 17... Nxe4 {[%clk 0:02:13.7]} 18. fxe4
{[%clk 0:03:01.2]} 18... Ng3 {[%clk 0:02:11.3]} 19. Rg1 {[%clk 0:03:01]} 19...
Nxe4 {[%clk 0:01:59.1]} 20. Qxe4 {[%clk 0:02:55.3]} 20... Rae8 {[%clk
0:01:37.8]} 21. Qf4 {[%clk 0:02:46]} 21... Bxc3+ {[%clk 0:01:30.6]} 22. bxc3
{[%clk 0:02:45.6]} 22... Qxc3+ {[%clk 0:01:32.5]} 23. Kf2 {[%clk 0:02:46.5]}
23... f6 {[%clk 0:01:32.8]} 24. Rac1 {[%clk 0:02:26.4]} 24... Qb2 {[%clk
0:00:59.1]} 25. Rb1 {[%clk 0:02:27.1]} 25... Qxa2 {[%clk 0:00:42.6]} 26. gxf6
{[%clk 0:02:27.2]} 26... Rxf6 {[%clk 0:00:39.6]} 27. Qxf6 {[%clk 0:02:27.4]}
27... Rf8 {[%clk 0:00:41.5]} 28. Qxf8+ {[%clk 0:02:26.3]} 28... Kxf8 {[%clk
0:00:43.4]} 29. Rxb7 {[%clk 0:02:27.1]} 29... Bf5 {[%clk 0:00:39.6]} 30. c5
{[%clk 0:02:11.1]} 30... Qxd5 {[%clk 0:00:33.4]} 31. Rb8+ {[%clk 0:02:11.8]}
31... Kg7 {[%clk 0:00:33.4]} 32. Rd1 {[%clk 0:02:13.3]} 32... Qa2 {[%clk
0:00:23.6]} 33. Rxd6 {[%clk 0:02:13.3]} 33... Bg4 {[%clk 0:00:21.4]} 34. Rb7+
{[%clk 0:02:10.8]} 1-0

[Event "*** Titled Tuesday Blitz"]
[Site "Chess.com"]
[Date "2018.12.04"]
[Round "5"]
[White "Chessialist"]
[Black "djano"]
[Result "1-0"]
[WhiteElo "2501"]
[BlackElo "2353"]
[TimeControl "180+2"]
[EndTime "14:04:50 PST"]
[Termination "Chessialist won by resignation"]

1. e4 {[%clk 0:03:01.9]} 1... e5 {[%clk 0:03:00.3]} 2. Nf3 {[%clk 0:03:03.1]}
2... Nc6 {[%clk 0:03:00.9]} 3. Bb5 {[%clk 0:03:04.2]} 3... Nf6 {[%clk
0:03:01.8]} 4. O-O {[%clk 0:03:04.6]} 4... Nxe4 {[%clk 0:03:02.7]} 5. d4 {[%clk
0:03:05.9]} 5... Nd6 {[%clk 0:03:02.1]} 6. dxe5 {[%clk 0:03:07.3]} 6... Nxb5
{[%clk 0:03:01.7]} 7. c4 {[%clk 0:03:08.9]} 7... Nbd4 {[%clk 0:02:08.4]} 8. Nxd4
{[%clk 0:03:07.8]} 8... Nxd4 {[%clk 0:02:09.7]} 9. Qxd4 {[%clk 0:03:08.7]} 9...
Be7 {[%clk 0:02:10.9]} 10. Bf4 {[%clk 0:03:06.8]} 10... O-O {[%clk 0:02:11.2]}
11. Nc3 {[%clk 0:03:07]} 11... b6 {[%clk 0:01:48]} 12. Rad1 {[%clk 0:03:07.9]}
12... Bc5 {[%clk 0:01:44.6]} 13. Qd5 {[%clk 0:02:57.2]} 13... Rb8 {[%clk
0:01:43.3]} 14. Rfe1 {[%clk 0:02:50.4]} 14... Qe7 {[%clk 0:01:31.3]} 15. a3
{[%clk 0:02:49.5]} 15... a5 {[%clk 0:01:28.2]} 16. Qd3 {[%clk 0:02:36.4]} 16...
Qe6 {[%clk 0:01:13.8]} 17. Nd5 {[%clk 0:02:07.7]} 17... c6 {[%clk 0:01:14.9]}
18. b4 {[%clk 0:01:57.9]} 18... axb4 {[%clk 0:01:11.9]} 19. axb4 {[%clk
0:01:59.1]} 19... cxd5 {[%clk 0:00:49.7]} 20. cxd5 {[%clk 0:01:59.2]} 20... Qg4
{[%clk 0:00:48.5]} 21. Re4 {[%clk 0:01:46.5]} 21... Ba6 {[%clk 0:00:44.1]} 22.
Qb1 {[%clk 0:01:42.4]} 22... Be7 {[%clk 0:00:34.7]} 23. e6 {[%clk 0:01:43.6]}
23... f5 {[%clk 0:00:28.9]} 24. Red4 {[%clk 0:01:40.1]} 24... Rbd8 {[%clk
0:00:19.1]} 25. Bc7 {[%clk 0:01:33.1]} 25... Qg5 {[%clk 0:00:17.9]} 26. d6
{[%clk 0:01:29.8]} 26... dxe6 {[%clk 0:00:11.1]} 27. dxe7 {[%clk 0:01:30.4]}
27... Qxe7 {[%clk 0:00:10.1]} 28. Bxd8 {[%clk 0:01:29]} 1-0

[Event "*** Titled Tuesday Blitz"]
[Site "Chess.com"]
[Date "2018.12.04"]
[Round "5"]
[White "Oligan22"]
[Black "JMatias"]
[Result "1-0"]
[WhiteElo "2269"]
[BlackElo "2345"]
[TimeControl "180+2"]
[EndTime "14:04:58 PST"]
[Termination "Oligan22 won by resignation"]

1. e4 {[%clk 0:03:01.9]} 1... e6 {[%clk 0:02:58.4]} 2. d4 {[%clk 0:03:01.4]}
2... d5 {[%clk 0:02:59.2]} 3. Nc3 {[%clk 0:03:02]} 3... Nf6 {[%clk 0:02:59.2]}
4. e5 {[%clk 0:03:02.9]} 4... Nfd7 {[%clk 0:02:58.1]} 5. f4 {[%clk 0:03:04.1]}
5... c5 {[%clk 0:03:00]} 6. Nf3 {[%clk 0:03:04.5]} 6... Nc6 {[%clk 0:03:01.9]}
7. Be3 {[%clk 0:03:05.4]} 7... cxd4 {[%clk 0:03:03.3]} 8. Nxd4 {[%clk
0:03:06.4]} 8... Qb6 {[%clk 0:03:04.6]} 9. a3 {[%clk 0:03:00.1]} 9... Nxd4
{[%clk 0:02:51.6]} 10. Bxd4 {[%clk 0:03:00.7]} 10... Bc5 {[%clk 0:02:30.2]} 11.
Na4 {[%clk 0:03:01.3]} 11... Qa5+ {[%clk 0:02:30.4]} 12. c3 {[%clk 0:03:02.5]}
12... Bxd4 {[%clk 0:02:24]} 13. Qxd4 {[%clk 0:03:04.4]} 13... b6 {[%clk
0:02:18.7]} 14. Qb4 {[%clk 0:03:04.4]} 14... Qxb4 {[%clk 0:02:17.8]} 15. axb4
{[%clk 0:03:06.3]} 15... Bb7 {[%clk 0:02:13.6]} 16. Bb5 {[%clk 0:03:03.3]} 16...
Ke7 {[%clk 0:02:14.8]} 17. Kd2 {[%clk 0:03:03.6]} 17... f6 {[%clk 0:02:08.9]}
18. exf6+ {[%clk 0:02:56.4]} 18... gxf6 {[%clk 0:02:01.3]} 19. b3 {[%clk
0:02:51.6]} 19... Kd6 {[%clk 0:01:56.3]} 20. Rhe1 {[%clk 0:02:48.5]} 20... Rhe8
{[%clk 0:01:44.1]} 21. Bd3 {[%clk 0:02:31.7]} 21... e5 {[%clk 0:01:37.8]} 22.
fxe5+ {[%clk 0:02:28.9]} 22... fxe5 {[%clk 0:01:39]} 23. Bxh7 {[%clk 0:02:21.3]}
23... Rh8 {[%clk 0:01:09.9]} 24. Bf5 {[%clk 0:02:21.6]} 24... Nf6 {[%clk
0:01:06.8]} 25. h3 {[%clk 0:02:20.6]} 25... Rag8 {[%clk 0:00:57.8]} 26. Re2
{[%clk 0:02:16.4]} 26... e4 {[%clk 0:00:46.1]} 27. Nb2 {[%clk 0:02:02.6]} 27...
a6 {[%clk 0:00:23.9]} 28. Rf1 {[%clk 0:01:46.2]} 28... Ke5 {[%clk 0:00:21.3]}
29. Nd3+ {[%clk 0:01:44.8]} 29... Kd6 {[%clk 0:00:22]} 30. Nf4 {[%clk
0:01:44.5]} 30... Rg5 {[%clk 0:00:17.7]} 31. g4 {[%clk 0:01:45.4]} 31... Nh5
{[%clk 0:00:15.9]} 32. Nxh5 {[%clk 0:01:33]} 1-0

[Event "*** Titled Tuesday Blitz"]
[Site "Chess.com"]
[Date "2018.12.04"]
[Round "5"]
[White "amintabatabaei"]
[Black "bascheyaro"]
[Result "1-0"]
[WhiteElo "2729"]
[BlackElo "2777"]
[TimeControl "180+2"]
[EndTime "14:05:08 PST"]
[Termination "amintabatabaei won by resignation"]

1. d4 {[%clk 0:03:01.9]} 1... Nf6 {[%clk 0:02:56.8]} 2. c4 {[%clk 0:03:02.5]}
2... e6 {[%clk 0:02:48.5]} 3. g3 {[%clk 0:03:03]} 3... d5 {[%clk 0:02:50.1]} 4.
Bg2 {[%clk 0:03:03.7]} 4... Be7 {[%clk 0:02:51.6]} 5. Nf3 {[%clk 0:03:03.5]}
5... O-O {[%clk 0:02:52.9]} 6. O-O {[%clk 0:03:04.7]} 6... b6 {[%clk 0:02:54.4]}
7. b3 {[%clk 0:03:02.3]} 7... Bb7 {[%clk 0:02:55.4]} 8. Bb2 {[%clk 0:03:03.5]}
8... Nbd7 {[%clk 0:02:56.7]} 9. Nc3 {[%clk 0:02:55]} 9... dxc4 {[%clk
0:02:55.4]} 10. bxc4 {[%clk 0:02:55.1]} 10... c5 {[%clk 0:02:56.3]} 11. d5
{[%clk 0:02:53.9]} 11... exd5 {[%clk 0:02:53.5]} 12. cxd5 {[%clk 0:02:53.7]}
12... Re8 {[%clk 0:02:53.7]} 13. e4 {[%clk 0:02:34.4]} 13... Bd6 {[%clk
0:02:54.4]} 14. Re1 {[%clk 0:02:21.7]} 14... Ne5 {[%clk 0:02:55.3]} 15. Nb5
{[%clk 0:02:20.1]} 15... Nc4 {[%clk 0:02:16.8]} 16. Nxd6 {[%clk 0:02:01.7]}
16... Qxd6 {[%clk 0:02:17.7]} 17. Bxf6 {[%clk 0:01:34.9]} 17... gxf6 {[%clk
0:02:01]} 18. Nh4 {[%clk 0:01:29.8]} 18... Bc8 {[%clk 0:02:01.4]} 19. f4 {[%clk
0:01:21.6]} 19... b5 {[%clk 0:01:51.2]} 20. a4 {[%clk 0:01:21]} 20... b4 {[%clk
0:01:50.4]} 21. Qe2 {[%clk 0:01:12.7]} 21... Na5 {[%clk 0:01:11.2]} 22. e5
{[%clk 0:01:13.7]} 22... fxe5 {[%clk 0:01:11.6]} 23. fxe5 {[%clk 0:01:15.6]}
23... Qd8 {[%clk 0:01:02.9]} 24. Qh5 {[%clk 0:01:00.7]} 24... b3 {[%clk
0:00:44.5]} 25. Be4 {[%clk 0:00:58.8]} 25... f5 {[%clk 0:00:24.3]} 26. exf6
{[%clk 0:00:51.8]} 26... Rxe4 {[%clk 0:00:25.1]} 27. Qg5+ {[%clk 0:00:49.2]} 1-0